[Event "Reykjavik Open 2025"]
[Site "Reykjavik"]
[Date "2025.04.10"]
[Round "2.1"]
[White "Lohia, Sohum"]
[Black "Maghsoodloo, Parham"]
[Result "0-1"]
[Annotator "TA"]
[ECO "B44"]
[WhiteElo "2354"]
[BlackElo "2684"]
[PlyCount "90"]
[EventDate "2025.04.09"]
[EventType "swiss"]
[EventCountry "ISL"]
[SourceTitle "playchess.com"]
[Source "ChessBase"]
[SourceQuality "1"]
[TimeControl "40/5400+30:1800+30"]

{[%evp 15,90,9,29,0,0,0,6,0,9,10,10,-2,-2,11,-7,-42,0,0,25,0,14,-4,28,29,40,31,43,9,41,-97,-90,-83,0,0,37,-13,-11,-101,-92,-93,-69,-100,-85,-113,-108,-112,-87,-97,-97,-112,-43,-47,-13,-9,-16,-75,-82,-618,-623,-607,-629,-618,-618,-611,-604,-551,-488,-583,-389,-555,-593,-544,-403,-29981,-29982,-29982,-29983]} 1. e4 {[%emt 0:00:07]} c5 {[%emt 0:00:07]} 2. Nf3 {[%emt 0:00:08][%cal Bg1f3,Bf3d4,Bd4b5][%mdl 32]} e6 {[%emt 0:00:13]} 3. d4 {[%emt 0:00:17]} cxd4 {[%emt 0:00:07]} 4. Nxd4 {[%emt 0:00:09]} Nc6 {[%emt 0:00:17]} 5. Nb5 {[%emt 0:02:25]} d6 {[%emt 0:11:04]} 6. c4 {[%emt 0:00:23]} Nf6 {[%emt 0:04:38]} 7. N1c3 {[%emt 0:00:23]} a6 {[%emt 0:00:46]} 8. Nd4 {[%emt 0:00:23]} Bd7 {[%emt 0:01:08]} 9. Be2 {[%emt 0:09:48] B44: Sicilian: Taimanov: 5 Nb5.} Rc8 {[%emt 0:02:59]} 10. Nxc6 {[%emt 0:10:51]} Bxc6 {[%emt 0:00:07]} 11. Qd4 {[%emt 0:03:42] The position is equal.} g6 $146 {[%emt 0:06:50]} (11... Qa5 12. Bd2 Qe5 13. Qxe5 dxe5 14. f3 Bc5 15. Nd1 Bd4 16. Be3 Nh5 17. g3 Ke7 18. Bxd4 exd4 {½-½ Fedorov,A (2559)-Romanov,E (2619) EU-ch 19th Batumi 2018 (8)}) 12. O-O {[%emt 0:03:33]} Bg7 {[%emt 0:00:04]} 13. Rd1 {[%emt 0:07:37][%cal Od4d3]} O-O {[%emt 0:01:28][%cal Of6e4]} 14. Qe3 {[%emt 0:01:01]} Qc7 {[%emt 0:10:22]} 15. Bd2 {[%emt 0:21:11]} Qb8 {[%emt 0:22:47]} 16. a4 {[%emt 0:05:00]} Rfd8 {[%emt 0:01:14]} 17. Qf4 {[%emt 0:06:03]} h6 {[%emt 0:08:37]} 18. h4 {[%emt 0:05:04]} Qc7 {[%emt 0:04:19]} 19. b4 {[%emt 0:05:43]} Be8 {[%emt 0:09:12]} 20. Rac1 {[%emt 0:03:38]} Qe7 {[%emt 0:04:20]} 21. Be3 {[%emt 0:04:25]} d5 {[%emt 0:05:08]} 22. Bc5 {[%emt 0:02:40]} (22. Bb6 $14 {stays ahead.} d4 23. e5 (23. Bxd4 Rxd4 24. Rxd4 e5 $19) (23. Rxd4 Nh5 $14)) 22... Rxc5 $1 $17 {[%emt 0:01:47]} 23. bxc5 {[%emt 0:00:05][%cal Rc4d5]} e5 {[%emt 0:03:21]} (23... d4 $17 24. e5 dxc3 25. exf6 Bxf6) 24. Qf3 $11 {[%emt 0:00:49]} dxe4 {[%emt 0:00:36]} 25. Nxe4 {[%emt 0:00:32]} ({White should try} 25. Qe3 $14) 25... Rxd1+ {[%emt 0:00:40]} 26. Bxd1 {[%emt 0:01:07]} (26. Rxd1 $11 Nxe4 27. Qxe4) 26... Nxe4 $1 $17 {[%emt 0:00:24]} 27. Qxe4 {[%emt 0:00:04]} Bc6 $1 {[%emt 0:00:03]} 28. Qg4 {[%emt 0:02:18] [#]} h5 $1 {[%emt 0:00:02][%mdl 1024] Black has strong compensation.} 29. Qc8+ {[%emt 0:03:47]} Kh7 {[%emt 0:00:28]} 30. Qh3 {[%emt 0:01:36]} e4 {[%emt 0:00:21][%cal Og7d4]} 31. Bc2 {[%emt 0:00:37]} Bd4 {[%emt 0:01:43][%cal Oe4e3]} 32. Re1 {[%emt 0:00:23]} Qxc5 {[%emt 0:00:12] Black is more active.} (32... Qe5 $17 {[%cal Oe5f4] ...Qf4! would now be deadly.} 33. Kf1 Qxc5 (33... Bxc5 34. Qf3 $15) 34. Bxe4 Bxe4 (34... Qxc4+ 35. Qd3 $16) (34... Bxa4 35. Qf3 $14) (34... Bxf2 35. Qf3 $16) 35. Rxe4 Qxc4+ 36. Re2 Qxa4) 33. Qg3 $1 $15 {[%emt 0:00:21]} f5 {[%emt 0:01:03][%cal Oc5e7]} (33... Qxc4 34. Qb3 Qxb3 35. Bxb3 $11) 34. Qc7+ {[%emt 0:00:25]} Bg7 {[%emt 0:00:21] A strong pair of Bishops.} 35. Rd1 {[%emt 0:00:50]} (35. Re3 $11 {remains equal.}) 35... e3 $17 {[%emt 0:00:02] Black has a king side majority} 36. fxe3 {[%emt 0:00:33][%mdl 8192] White does not recover from this.} (36. Qf4 $17) 36... Qxe3+ $19 {[%emt 0:00:05]} 37. Kf1 {[%emt 0:00:30] [#]} Qc3 $1 {[%emt 0:00:37][%csl LRc2,LRc4]} 38. Bd3 {[%emt 0:00:29]} Bxa4 {[%emt 0:00:12]} 39. Be2 {[%emt 0:00:32]} Bxd1 {[%emt 0:00:07]} 40. Bxd1 {[%emt 0:00:03][%mdl 4096] Endgame KQB-KQB. Black is two pawns up.} b5 {[%emt 0:00:43]} 41. c5 {[%emt 0:30:08]} Qc1 {[%emt 0:31:15]} 42. Ke2 {[%emt 0:00:44]} (42. Qd6 {was called for.}) 42... Qc4+ {[%emt 0:00:21]} 43. Kd2 {[%emt 0:00:00]} Kh6 {[%emt 0:00:00]} 44. Be2 {[%emt 0:00:00]} (44. Qg3 $19) 44... Bc3+ {[%emt 0:00:00]} 45. Kc2 {[%emt 0:00:00]} Qb4 {[%emt 0:00:00] Weighted Error Value: White=0.60/Black=0.27 (precise)   Loses game:     	White=1     	---        Mistake:       	White=6     	Black=2      Inaccurate:     	White=4     	Black=6      OK:         	White=12    	Black=10     Best:        	---       	Black=2      Strong:       	White=1     	Black=4} ({Less strong is} 45... Qxe2+ 46. Kxc3 Qe1+ (46... Qxg2 47. Qf4+ Kg7 48. Qc7+ Kf6 49. Qd6+ Kf7 50. c6 $14) 47. Kc2 $17) 0-1

[Event "Reykjavik Open 2025"]
[Site "Reykjavik"]
[Date "2025.04.10"]
[Round "2.2"]
[White "Ivic, Velimir"]
[Black "Muetsch, Annmarie"]
[Result "1-0"]
[Annotator "TA"]
[ECO "A21"]
[WhiteElo "2623"]
[BlackElo "2329"]
[PlyCount "107"]
[EventDate "2025.04.09"]
[EventType "swiss"]
[EventCountry "ISL"]
[SourceTitle "playchess.com"]
[Source "ChessBase"]
[SourceQuality "1"]
[TimeControl "40/5400+30:1800+30"]

{[%evp 12,107,43,7,16,0,29,10,22,15,19,17,12,0,12,4,31,15,23,0,0,0,24,0,60,52,49,56,70,54,69,52,49,69,73,66,72,53,60,49,64,72,69,66,87,72,86,88,84,83,104,88,108,89,94,87,89,90,112,112,110,85,119,113,117,113,132,131,131,113,126,113,112,100,196,199,240,204,261,248,480,489,483,435,494,493,873,864,715,847,896,832,29973,29974,29971,29972,29956,2102]} 1. c4 {[%emt 0:00:06]} e5 {[%emt 0:03:17]} 2. g3 {[%emt 0:00:54]} d6 {[%emt 0:02:03]} 3. Bg2 {[%emt 0:00:47]} Nd7 {[%emt 0:00:35]} 4. Nc3 {[%emt 0:01:11]} g6 {[%emt 0:00:28]} 5. Nf3 {[%emt 0:03:38]} Bg7 {[%emt 0:00:21]} 6. O-O {[%emt 0:00:52]} Ne7 {[%emt 0:01:06]} 7. d3 {[%emt 0:07:19]} O-O {[%emt 0:00:46] A21: English Opening: 1...e5 2 Nc3.} 8. Rb1 {[%emt 0:00:40]} a5 {[%emt 0:03:15]} 9. a3 {[%emt 0:01:14]} Nc5 {[%emt 0:05:06] The position is equal.} 10. b4 $146 {[%emt 0:01:59]} (10. Bg5 c6 11. b4 axb4 12. axb4 Ne6 13. Bd2 f5 14. Ng5 h6 15. Nxe6 Bxe6 16. b5 {0-1 Maia,J (2029)-Araujo,S Natal Magistral 3rd A 2006 (2.5)}) 10... axb4 {[%emt 0:00:16]} 11. axb4 {[%emt 0:00:06]} Ne6 {[%emt 0:01:00]} 12. Bb2 {[%emt 0:16:50]} c6 {[%emt 0:07:42]} 13. e3 {[%emt 0:03:57]} d5 {[%emt 0:05:21][%cal Bd6d5,Bd5d4][%mdl 32]} 14. Qb3 {[%emt 0:01:13]} d4 {[%emt 0:08:20]} 15. Ne4 {[%emt 0:05:35]} Nf5 {[%emt 0:04:00]} 16. Rfe1 {[%emt 0:00:29]} Nd6 {[%emt 0:03:55]} 17. Ned2 {[%emt 0:02:55]} c5 {[%emt 0:06:47]} ({Better is} 17... dxe3 $11 18. Rxe3 Nd4 19. Nxd4 exd4) 18. exd4 $14 {[%emt 0:04:13]} exd4 {[%emt 0:00:45]} 19. Ba3 {[%emt 0:02:16]} Qc7 {[%emt 0:03:21]} 20. bxc5 {[%emt 0:06:55]} Nxc5 {[%emt 0:00:19]} 21. Bxc5 {[%emt 0:00:06]} Qxc5 {[%emt 0:00:09]} 22. Qb6 {[%emt 0:00:11]} Qxb6 {[%emt 0:07:46]} 23. Rxb6 {[%emt 0:00:10]} Rd8 {[%emt 0:02:37]} 24. Ng5 {[%emt 0:07:01]} h6 {[%emt 0:06:29]} 25. Nge4 {[%emt 0:01:46]} Nxe4 {[%emt 0:00:36]} 26. Bxe4 {[%emt 0:01:21]} Ra3 {[%emt 0:04:05]} 27. Reb1 {[%emt 0:02:51]} (27. Bxb7 Rxd3 28. Nb1 Bxb7 29. Rxb7 Bf8) 27... Bf8 {[%emt 0:02:38]} 28. R6b3 {[%emt 0:03:20]} (28. Bxb7 $6 Rxd3 29. Ne4 Kg7 $15) 28... Rxb3 {[%emt 0:07:05]} 29. Rxb3 {[%emt 0:00:28]} Rd7 {[%emt 0:00:08] [#]} 30. Rb5 $1 {[%emt 0:01:43] Wards off Bc5} Be7 {[%emt 0:04:22]} 31. Nb3 {[%emt 0:01:57]} Kg7 {[%emt 0:00:54]} 32. Bd5 {[%emt 0:06:55]} Bf6 {[%emt 0:00:37]} 33. Nc5 {[%emt 0:07:13][%csl LRb7,LRd7]} Rc7 {[%emt 0:00:33]} 34. Nxb7 {[%emt 0:00:31] White has more active pieces.} ({Stronger than} 34. Bxb7 Rxc5 35. Rxc5 Bxb7 $17) 34... Bxb7 {[%emt 0:00:22]} 35. Bxb7 $16 {[%emt 0:00:05][%mdl 4096] Endgame KRB-KRB. White is a pawn up.} Be7 {[%emt 0:00:15]} 36. Kg2 {[%emt 0:02:45]} f5 {[%emt 0:01:17]} 37. h4 {[%emt 0:02:10]} h5 {[%emt 0:01:20]} 38. Bd5 {[%emt 0:00:32]} Bc5 {[%emt 0:00:41]} 39. Kf3 {[%emt 0:00:22]} Ba3 {[%emt 0:04:52]} 40. Ra5 {[%emt 0:01:17]} Bb4 {[%emt 0:00:29]} 41. Ra4 {[%emt 0:30:57]} Bc5 {[%emt 0:07:46]} 42. Ra6 {[%emt 0:00:00]} Bb4 {[%emt 0:01:07]} (42... Ra7 $16 43. Rc6 Be7) 43. Kf4 $18 {[%emt 0:00:00]} Bd2+ {[%emt 0:02:44]} 44. Ke5 {[%emt 0:00:00]} Be1 {[%emt 0:01:45]} 45. Ra2 {[%emt 0:00:00]} (45. Kxd4 Bxf2+ 46. Kc3 Be1+ (46... Bxg3 47. d4 $17) 47. Kc2 Bxg3 $17) 45... Bc3 $2 {[%emt 0:01:09]} (45... Bb4 46. Kxd4 Bc5+ 47. Kc3 Bb6) 46. Kd6 {[%emt 0:00:00]} Rc8 {[%emt 0:00:11]} 47. Kd7 {[%emt 0:00:00]} ({Less strong is} 47. c5 Bb4 48. Rc2 (48. Ra7+ Kh6 $18) 48... Kf6 $18) 47... Rc5 {[%emt 0:01:09]} 48. Ra7 {[%emt 0:00:00]} Kh6 {[%emt 0:04:20]} (48... Kh8 $142 49. Ke6 Bd2) 49. f4 {[%emt 0:00:00] Threatens to win with Bg8.} Bb4 {[%emt 0:05:49]} 50. Rb7 {[%emt 0:00:00]} Ba3 {[%emt 0:00:43]} 51. Rb3 {[%emt 0:00:00]} Ra5 {[%emt 0:00:41] [#]} 52. Rxa3 $1 {[%emt 0:00:00][%mdl 512] White mates.} Rxa3 {[%emt 0:00:46]} 53. c5 {[%emt 0:00:00]} Ra7+ {[%emt 0:08:40]} 54. Kd6 {[%emt 0:00:00] Weighted Error Value: White=0.05 (flawless) /Black=0.44  Mistake:       	---       	Black=4      Inaccurate:     	---       	Black=3      OK:         	White=15    	Black=10     Best:        	White=5     	Black=1      Strong:       	White=1     	---} (54. Ke6 $142 Ra3 55. Bc4 Kg7 56. c6 Ra7 57. Kd6 Ra8 58. c7 Kf6 59. Bb5) 1-0

[Event "Reykjavik Open 2025"]
[Site "Reykjavik"]
[Date "2025.04.10"]
[Round "2.3"]
[White "Safarli, Eltaj"]
[Black "Dushyant Sharma"]
[Result "1/2-1/2"]
[Annotator "TA"]
[ECO "C77"]
[WhiteElo "2617"]
[BlackElo "2313"]
[PlyCount "95"]
[EventDate "2025.04.09"]
[EventType "swiss"]
[EventCountry "ISL"]
[SourceTitle "playchess.com"]
[Source "ChessBase"]
[SourceQuality "1"]
[TimeControl "40/5400+30:1800+30"]

{[%evp 12,94,18,18,22,22,24,14,20,28,33,25,38,35,33,35,41,24,23,20,41,33,50,21,49,57,50,54,47,0,0,-6,9,8,6,10,6,6,7,12,12,4,4,0,0,0,0,0,0,0,0,0,0,-8,0,0,0,0,0,0,0,0,2,0,0,0,16,0,0,0,0,0,31,0,0,0,0,0,0,0,0,0,0,0,0]} 1. e4 {[%emt 0:00:03]} e5 {[%emt 0:00:43]} 2. Nf3 {[%emt 0:00:06]} Nc6 {[%emt 0:00:04]} 3. Bb5 {[%emt 0:00:20]} a6 {[%emt 0:00:44]} 4. Ba4 {[%emt 0:00:05]} Nf6 {[%emt 0:00:30]} 5. d3 {[%emt 0:00:24]} b5 {[%emt 0:06:19]} 6. Bb3 {[%emt 0:00:10]} Bc5 {[%emt 0:00:23]} 7. Nc3 {[%emt 0:00:29] 7.c3 is becoming the main line.} d6 {[%emt 0:01:50] C77: Ruy Lopez: 3...a6 4 Ba4 Nf6, unusual lines.} 8. Nd5 {[%emt 0:00:31]} h6 {[%emt 0:03:57] Prevents Bg5.} 9. c3 {[%emt 0:00:33]} Be6 {[%emt 0:05:19]} 10. Nxf6+ {[%emt 0:01:05]} Qxf6 {[%emt 0:00:20]} 11. O-O {[%emt 0:00:16]} O-O {[%emt 0:01:03]} 12. Bxe6 {[%emt 0:00:16]} fxe6 {[%emt 0:00:30]} 13. b4 {[%emt 0:00:16]} Bb6 {[%emt 0:00:33]} 14. Be3 {[%emt 0:00:06]} d5 {[%emt 0:09:31]} 15. Qe2 $146 {[%emt 0:24:45]} (15. Bxb6 cxb6 16. Qb3 Rad8 17. a4 Qg6 18. axb5 axb5 19. Kh1 Kh7 20. Rae1 Qh5 21. Ng1 {0-1 Jonvik,A (2156)-Narusberg,P (2362) EU-chT11 sf1 email 2017 [6]}) 15... Ne7 {[%emt 0:11:47]} 16. a4 {[%emt 0:00:00]} Ng6 {[%emt 0:03:55]} 17. axb5 {[%emt 0:00:00]} axb5 {[%emt 0:07:00]} (17... d4 {is interesting.} 18. cxd4 exd4 19. e5 Qf5) 18. Rxa8 {[%emt 0:00:00]} Rxa8 {[%emt 0:00:06]} 19. Bxb6 {[%emt 0:00:00]} cxb6 {[%emt 0:00:06]} 20. Qe3 {[%emt 0:00:00]} (20. g3 $14) 20... Ra3 $11 {[%emt 0:11:04]} 21. Rc1 {[%emt 0:13:18] [#]} d4 $1 {[%emt 0:13:26]} 22. cxd4 {[%emt 0:01:24]} exd4 {[%emt 0:00:07]} 23. Qxd4 {[%emt 0:01:59]} Nf4 $1 {[%emt 0:04:26]} 24. Rc8+ {[%emt 0:02:45]} (24. Qxb6 $2 Ne2+ (24... Rxd3 25. Kf1 $17) 25. Kf1 Nxc1 $19) 24... Kh7 {[%emt 0:00:25] ( -> ...Ra1+)} 25. Qxf6 {[%emt 0:00:12]} (25. Qxb6 $2 {leads to mate.} Qa1+ (25... Nxd3 $2 26. Nd2 $19)) 25... gxf6 {[%emt 0:00:05][%mdl 4096] Endgame KRN-KRN. White is a pawn up.} 26. h4 {[%emt 0:00:12]} Rxd3 {[%emt 0:01:39]} 27. e5 {[%emt 0:10:03]} fxe5 {[%emt 0:06:11]} 28. Nxe5 {[%emt 0:01:08]} Rd4 {[%emt 0:00:42]} 29. Rc7+ {[%emt 0:09:36]} Kg8 {[%emt 0:00:33]} 30. g3 {[%emt 0:00:11]} Nd5 {[%emt 0:03:47]} 31. Rb7 {[%emt 0:04:34]} Rxb4 {[%emt 0:00:53]} 32. h5 {[%emt 0:06:06]} Re4 {[%emt 0:04:31]} 33. Nd7 {[%emt 0:00:59]} b4 {[%emt 0:01:28] [#]} 34. Nxb6 {[%emt 0:00:08]} Nxb6 {[%emt 0:01:48]} 35. Rxb6 {[%emt 0:00:01] KR-KR} Kf7 {[%emt 0:00:55]} 36. Kg2 {[%emt 0:00:16]} Re5 {[%emt 0:00:54]} 37. g4 {[%emt 0:00:32]} ({Don't do} 37. Rxb4 $6 Rxh5 38. g4 Rc5 $14) 37... Re4 {[%emt 0:00:16]} 38. Kg3 {[%emt 0:01:36]} Kf6 {[%emt 0:00:44]} 39. Rb5 {[%emt 0:02:47]} Rc4 {[%emt 0:00:52]} 40. f3 {[%emt 0:00:25]} Rd4 {[%emt 0:00:32]} 41. Rb7 {[%emt 0:33:51]} Rc4 {[%emt 0:07:38]} 42. Rh7 {[%emt 0:00:00]} b3 {[%emt 0:02:24] and ...Rb4 would now be decisive. The position is equal.} 43. Rxh6+ {[%emt 0:00:00]} Ke5 {[%emt 0:01:33]} 44. Rg6 $1 {[%emt 0:00:00]} Kd6 $1 {[%emt 0:09:28]} 45. Rg8 $1 {[%emt 0:00:00]} Kc7 {[%emt 0:00:08]} 46. h6 {[%emt 0:00:00]} b2 {[%emt 0:00:08]} 47. h7 {[%emt 0:00:00]} b1=Q {[%emt 0:00:16]} 48. h8=Q {[%emt 0:00:00] Weighted Error Value: White=0.04 (flawless) /Black=0.04 (flawless)   Mistake:       	White=1     	---        Inaccurate:     	White=2     	Black=2      OK:         	White=16    	Black=16     Best:        	White=2     	Black=5      Strong:       	White=2     	Black=2} 1/2-1/2

[Event "Reykjavik Open 2025"]
[Site "Reykjavik"]
[Date "2025.04.10"]
[Round "2.4"]
[White "Frayna, Janelle Mae"]
[Black "Ivanchuk, Vasyl"]
[Result "0-1"]
[Annotator "TA"]
[ECO "A29"]
[WhiteElo "2311"]
[BlackElo "2604"]
[PlyCount "84"]
[EventDate "2025.04.09"]
[EventType "swiss"]
[EventCountry "ISL"]
[SourceTitle "playchess.com"]
[Source "ChessBase"]
[SourceQuality "1"]
[TimeControl "40/5400+30:1800+30"]

{[%evp 14,84,0,-7,0,0,14,21,22,41,78,24,48,-44,-36,-57,-50,-35,-47,-29,-58,-49,-46,-69,-58,-59,-66,-70,-66,-64,-33,-62,-43,-77,-60,-89,-24,-24,-19,-41,-40,-37,-14,-30,-32,-37,-27,-54,-43,-115,-114,-115,-115,-181,-160,-166,-161,-306,-314,-412,-425,-381,-314,-291,-316,-319,-297,-320,-320,-310,-302,-293,-278]} 1. c4 {[%emt 0:00:01]} e5 {[%emt 0:00:27]} 2. Nc3 {[%emt 0:00:42]} Nf6 {[%emt 0:00:47]} 3. Nf3 {[%emt 0:01:49]} Nc6 {[%emt 0:00:25]} 4. g3 {[%emt 0:01:43]} d5 {[%emt 0:02:04]} 5. cxd5 {[%emt 0:01:27]} Nxd5 {[%emt 0:00:05]} 6. Bg2 {[%emt 0:03:30]} Nb6 {[%emt 0:00:11] 6...Bc5 might become the main line.} 7. O-O {[%emt 0:00:36]} Be7 {[%emt 0:00:05]} 8. b3 {[%emt 0:06:16]} Bf5 $5 {[%emt 0:06:42][%mdl 4] An interesting side line. A29: English Opening: Four Knights Variation with 4 g3.} 9. Bb2 {[%emt 0:04:22][%cal Od2d4]} Qd7 {[%emt 0:05:54] [#]} 10. d4 $1 {[%emt 0:02:35]} exd4 {[%emt 0:04:20] The position is equal.} 11. Nb5 {[%emt 0:01:45][%cal Oa1c1]} Be4 $146 {[%emt 0:01:09]} (11... O-O-O 12. Rc1 Kb8 13. Ne5 Nxe5 14. Rxc7 Qxb5 15. Rxb7+ Kc8 16. Qc1+ Bc5 17. Qf4 Rd7 18. Qxf5 {1-0 Wagh,S (2243)-Raghav,V (2028) Tamil Nadu IM 16th 2024 (9)}) 12. Nbxd4 {[%emt 0:05:10]} (12. Nfxd4 Bxg2 13. Kxg2 a6 14. Nxc7+ (14. Nf5 axb5 15. Nxg7+ Kd8 $15) 14... Qxc7 $17) (12. Rc1 $1 $16 {[%cal Of3e5] Ne5! is the strong threat.} O-O 13. Nfxd4 Bxg2 14. Kxg2 Nxd4 15. Qxd4 Qxd4 16. Nxd4 (16. Bxd4 c6 $11)) 12... Bf6 {[%emt 0:05:47] [#] Inhibits Ne5.} 13. Ne5 {[%emt 0:20:50]} Bxe5 $15 {[%emt 0:11:10]} (13... Nxe5 $2 14. Bxe4 Nd5 15. Qc2 $18) 14. Bxe4 {[%emt 0:00:04]} Nxd4 {[%emt 0:00:11]} (14... Bxd4 15. Bxc6 Bxf2+ 16. Rxf2 $16) 15. e3 $1 {[%emt 0:00:04] [#]} (15. Bxb7 $2 Rb8 16. Be4 Nf3+ 17. exf3 Qxd1 (17... Bxb2 18. Qc2 $17) 18. Bxe5 Qd2 19. Bxg7 Rg8 $19) 15... Nf3+ {[%emt 0:01:58]} 16. Qxf3 {[%emt 0:00:11]} Bxb2 {[%emt 0:00:04]} 17. Bxb7 {[%emt 0:02:55] [#]} O-O $1 {[%emt 0:00:10]} 18. Rab1 {[%emt 0:02:46][%cal Of1d1]} (18. Rad1 Qe7) 18... Be5 {[%emt 0:05:32] And now ...Rab8 would win.} 19. Rfd1 {[%emt 0:00:21] [#]} Bd6 $1 {[%emt 0:00:22]} 20. Bxa8 {[%emt 0:02:47]} Rxa8 {[%emt 0:00:02]} 21. Qb7 {[%emt 0:02:23][%cal Od1d5]} Qc8 {[%emt 0:21:30]} 22. Qc6 {[%emt 0:04:33]} Qe8 {[%emt 0:03:45]} 23. Qb7 {[%emt 0:03:46]} h5 {[%emt 0:04:34]} 24. Rbc1 {[%emt 0:02:57] [#]} h4 {[%emt 0:02:33]} 25. Rd4 {[%emt 0:03:30]} Rb8 {[%emt 0:05:02]} 26. Qg2 {[%emt 0:03:24]} hxg3 {[%emt 0:01:21]} 27. hxg3 {[%emt 0:00:05]} Qe5 {[%emt 0:01:57]} 28. Rcd1 {[%emt 0:02:33]} g6 {[%emt 0:01:28]} 29. Qh3 {[%emt 0:02:16]} Re8 {[%emt 0:00:56]} 30. Kg2 {[%emt 0:01:44]} Qc5 {[%emt 0:02:46]} (30... Qb5 {seems wilder.} 31. Qg4 Kg7 32. Rh1 Be5) 31. Kg1 {[%emt 0:08:39] [#]} (31. Qh4 $15) 31... Kg7 $1 $17 {[%emt 0:02:35]} 32. Rh4 {[%emt 0:04:48] [#]} Be5 $1 {[%emt 0:00:02]} 33. Kg2 {[%emt 0:01:04]} (33. Qh1 $17) 33... Qc6+ $19 {[%emt 0:02:10]} 34. Kg1 {[%emt 0:04:08]} Qc2 {[%emt 0:00:02]} 35. Rf1 {[%emt 0:00:55]} (35. Qf1 $142) 35... Qxa2 {[%emt 0:03:28]} 36. Re4 {[%emt 0:01:13]} Qxb3 {[%emt 0:01:26]} 37. Qg2 {[%emt 0:00:44]} Nd5 {[%emt 0:03:52]} 38. f4 {[%emt 0:00:10] Black has a decisive advantage.} Nxe3 {[%emt 0:00:02]} 39. Qf3 {[%emt 0:00:07] [#]} Qb6 $1 {[%emt 0:00:01]} 40. fxe5 {[%emt 0:01:04]} (40. Rxe3 $2 {perishes.} Bc3 (40... Bd4 $2 41. Rfe1 $19) 41. Kh2 Rxe3 $19) (40. Qxe3 $2 Qxe3+ 41. Rxe3 Bd4 $19) 40... Nxf1+ {[%emt 0:00:07]} 41. Kxf1 {[%emt 0:30:06]} Qb5+ {[%emt 0:03:41]} 42. Kg2 {[%emt 0:00:00]} Qd5 {[%emt 0:00:24] Weighted Error Value: White=0.28 (precise) /Black=0.11 (very precise)   Mistake:       	White=5     	Black=1      Inaccurate:     	White=5     	Black=2      OK:         	White=12    	Black=14     Best:        	White=3     	Black=4      Strong:       	White=1     	Black=3      Brilliant:      	---       	Black=1} 0-1

[Event "Reykjavik Open 2025"]
[Site "Reykjavik"]
[Date "2025.04.10"]
[Round "2.5"]
[White "Banusz, Tamas"]
[Black "Sarkar, Justin"]
[Result "1-0"]
[Annotator "TA"]
[ECO "A36"]
[WhiteElo "2592"]
[BlackElo "2305"]
[PlyCount "55"]
[EventDate "2025.04.09"]
[EventType "swiss"]
[EventCountry "ISL"]
[SourceTitle "playchess.com"]
[Source "ChessBase"]
[SourceQuality "1"]
[TimeControl "40/5400+30:1800+30"]

{[%evp 10,55,11,5,18,12,7,0,31,20,41,39,28,29,27,19,46,38,71,54,98,103,109,115,106,85,98,82,97,93,101,107,104,102,157,163,159,164,298,289,277,279,720,694,737,727,847,811]} 1. c4 {[%emt 0:00:04]} g6 {[%emt 0:00:48]} 2. g3 {[%emt 0:00:34]} Bg7 {[%emt 0:00:54]} 3. Bg2 {[%emt 0:00:16]} c5 {[%emt 0:00:19]} 4. Nc3 {[%emt 0:01:18]} Nc6 {[%emt 0:00:37]} 5. d3 {[%emt 0:00:27]} e6 {[%emt 0:01:32]} 6. h4 {[%emt 0:02:02][%cal Bh2h4,Bh4h5][%mdl 32]} h6 {[%emt 0:01:29] A36: Symmetrical English vs ...g6: 4 Bg2 Bg7.} 7. h5 {[%emt 0:02:09]} g5 {[%emt 0:00:14][%cal Bg6g5,Bg5g4][%mdl 32]} 8. f4 {[%emt 0:00:18]} d5 $146 {[%emt 0:01:09] The position is equal.} (8... g4 9. Bxc6 bxc6 10. e4 f5 11. e5 d6 12. exd6 Qxd6 13. Be3 Nf6 14. Nge2 O-O {1-0 Aronian,L (2775)-Dominguez Perez,L (2754) Saint Louis Blitz 2022 (8)}) 9. cxd5 {[%emt 0:07:50]} exd5 {[%emt 0:00:27]} 10. Nxd5 {[%emt 0:00:22]} Nge7 {[%emt 0:02:08]} 11. Nxe7 {[%emt 0:02:26]} Qxe7 {[%emt 0:00:14]} 12. Nf3 {[%emt 0:01:51]} g4 {[%emt 0:14:40]} 13. Nh4 {[%emt 0:11:37]} Qd6 {[%emt 0:18:03]} 14. Be4 {[%emt 0:08:18]} Ne7 {[%emt 0:00:11]} 15. Qc2 {[%emt 0:01:12]} Rb8 {[%emt 0:10:49]} 16. Bd2 {[%emt 0:02:59]} O-O {[%emt 0:06:23]} 17. Rc1 {[%emt 0:11:26]} b6 {[%emt 0:19:31][%cal Bb7b6,Bb6c5,Bc5d4][%mdl 32] [#]} 18. b4 $1 {[%emt 0:00:09][%cal Rb4c5]} f5 {[%emt 0:02:02]} (18... Be6 19. bxc5) 19. Bg2 {[%emt 0:03:02][%cal Rb4c5]} Be6 {[%emt 0:00:14]} 20. bxc5 {[%emt 0:02:04]} bxc5 {[%emt 0:00:04]} 21. Bc3 {[%emt 0:00:09]} Bd4 {[%emt 0:06:46]} ({Black should play} 21... Rfc8) 22. Bxd4 $16 {[%emt 0:02:58]} cxd4 {[%emt 0:00:15]} 23. Qc7 {[%emt 0:02:09]} Qb4+ {[%emt 0:08:00]} (23... Rfd8 $142 24. Kf2 (24. Qxa7 Rd7 $18) 24... Rb2) 24. Kf2 $18 {[%emt 0:00:06]} Qd2 {[%emt 0:02:17]} 25. Qe5 {[%emt 0:00:57] Inhibits Qe3+.} (25. Qxe7 {leads to mate.} Qe3+ (25... Bxa2 $2 26. Rc6 $18) 26. Kf1 Qxc1+ 27. Kf2 Qe3+ 28. Kf1 Rb1#) 25... Bxa2 {[%emt 0:00:42] [#]} (25... Qe3+ 26. Qxe3 dxe3+ 27. Kxe3 Rb2) 26. Qxe7 {[%emt 0:10:18] White is clearly winning.} Rbe8 {[%emt 0:01:08]} 27. Rhd1 {[%emt 0:00:29]} (27. Qxa7 $2 {too greedy.} Rxe2+ 28. Kg1 Rxg2+ (28... Qxc1+ $2 29. Kh2 $19) 29. Nxg2 Bd5 $19 (29... Qxc1+ 30. Kh2 $16)) 27... Qxd1 {[%emt 0:01:49]} 28. Qxf8+ {[%emt 0:00:26] Weighted Error Value: White=0.02 (flawless) /Black=0.76  Mistake:       	---       	Black=3      Inaccurate:     	---       	Black=4      OK:         	White=11    	Black=4      Best:        	White=4     	---} 1-0